fUST/lending_fUST_20250731
["ID","MTS","AMOUNT","RATE_DAILY","PERIOD"]
[376396083,1753963862349,-151.0,0.000215,2]
[376396084,1753963862419,-152.236028,0.000215,2]
[376396085,1753963862428,-151.0,0.000215,2]
[376396086,1753963862438,-151.0,0.000215,2]
[376396087,1753963862448,-179.070072,0.000215,2]
[376396088,1753963862457,-151.0,0.000215,2]
[376396089,1753963862467,-142839.2,0.000215,2]
[376396090,1753963862476,-151.0,0.000215,2]
[376396091,1753963862485,-151.0,0.000215,2]
[376396092,1753963862494,-151.0,0.000215,2]
[376396093,1753963862503,-190.278364,0.000215,2]
[376396094,1753963862513,-50000.0,0.000215,2]
[376396095,1753963862522,-270000.0,0.000215,2]
[376396096,1753963862533,-50000.0,0.000215,2]
[376396097,1753963862542,-76475.03,0.000215,2]
[376396098,1753963862551,-151.0,0.000215,2]
[376396099,1753963862561,-244.656716,0.000215,2]
[376396100,1753963862570,-151.0,0.000215,2]
[376396101,1753963862579,-151.0,0.000215,2]
[376396102,1753963862588,-151.0,0.000215,2]
[376396103,1753963862598,-244.656716,0.000215,2]
[376396104,1753963862607,-151.0,0.000215,2]
[376396105,1753963862616,-151.0,0.000215,2]
[376396106,1753963862625,-151.0,0.000215,2]
[376396107,1753963862634,-151.0,0.000215,2]
[376396108,1753963862644,-151.0,0.000215,2]
[376396109,1753963862653,-151.0,0.000215,2]
[376396110,1753963862663,-151.0,0.000215,2]
[376396111,1753963862673,-235.201776,0.000215,2]
[376396112,1753963862682,-235.201776,0.000215,2]
[376396113,1753963862692,-235.201776,0.000215,2]
[376396114,1753963862702,-235.201776,0.000215,2]
[376396115,1753963862711,-151.0,0.000215,2]
[376396116,1753963862721,-151.0,0.000215,2]
[376396117,1753963862731,-151.0,0.000215,2]
[376396118,1753963862742,-151.0,0.000215,2]
[376396119,1753963862752,-151.0,0.000215,2]
[376396120,1753963862761,-151.0,0.000215,2]
[376396121,1753963862771,-204.844558,0.000215,2]
[376396122,1753963862781,-968.99856048,0.000215,2]
[376396123,1753963862791,-200.0,0.00021537,2]
[376396124,1753963862801,-686.82676673,0.00021555,5]
[376396125,1753963862811,-500.0,0.00021616,2]
[376396126,1753963862820,-151.0,0.00021643,2]
[376396127,1753963862829,-151.842136,0.00021643,2]
[376396128,1753963862838,-151.0,0.00021643,2]
[376396129,1753963862847,-460.0,0.00021643,2]
[376396130,1753963862856,-151.0,0.00021643,2]
[376396131,1753963862865,-151.0,0.00021643,2]
[376396132,1753963862874,-288.913211,0.00021643,2]
[376396133,1753963862883,-1310.07259,0.00021643,2]
[376396134,1753963862892,-1310.07259,0.00021643,2]
[376396135,1753963862902,-460.0,0.00021643,2]
[376396136,1753963862910,-460.0,0.00021643,2]
[376396137,1753963862920,-460.0,0.00021643,2]
[376396138,1753963862929,-460.0,0.00021643,2]
[376396139,1753963862939,-460.0,0.00021643,2]
[376396140,1753963862949,-460.0,0.00021643,2]
[376396141,1753963862958,-540.95736422,0.00021643,2]
[376396142,1753963862967,-370.74,0.00021643,2]
[376396143,1753963862975,-401.62842738,0.00021643,2]
[376396144,1753963862982,-460.0,0.00021643,2]
[376396145,1753963862991,-460.0,0.00021643,2]
[376396146,1753963863000,-151.0,0.00021643,2]
[376396147,1753963863011,-460.0,0.00021643,2]
[376396148,1753963863021,-460.0,0.00021643,2]
[376396149,1753963863033,-460.0,0.00021643,2]
[376396150,1753963863042,-570.7,0.00021643,2]
[376396151,1753963863052,-460.0,0.00021643,2]
[376396152,1753963863062,-151.0,0.00021643,2]
[376396153,1753963863073,-244.656716,0.00021643,2]
[376396154,1753963863083,-244.656716,0.00021643,2]
[376396155,1753963863095,-584.6,0.00021643,2]
[376396156,1753963863105,-460.0,0.00021643,2]
[376396157,1753963863115,-1216.2,0.00021643,2]
[376396158,1753963863125,-483.73,0.00021643,2]
[376396159,1753963863135,-1379.79,0.00021643,2]
[376396160,1753963863146,-2057.89,0.00021643,2]
[376396161,1753963863156,-1568.32,0.00021643,2]
[376396162,1753963863167,-488.12,0.00021643,2]
[376396163,1753963863177,-460.0,0.00021643,2]
[376396164,1753963863186,-1262.54,0.00021643,2]
[376396165,1753963863196,-1116.38,0.00021643,2]
[376396166,1753963863205,-460.0,0.00021643,2]
[376396167,1753963863215,-460.0,0.00021643,2]
[376396168,1753963863226,-460.0,0.00021643,2]
[376396169,1753963863236,-460.0,0.00021643,2]
[376396170,1753963863246,-460.0,0.00021643,2]
[376396171,1753963863255,-1791.33,0.00021643,2]
[376396172,1753963863265,-460.0,0.00021643,2]
[376396173,1753963863275,-460.0,0.00021643,2]
[376396174,1753963863286,-1267.79,0.00021643,2]
[376396175,1753963863295,-460.0,0.00021643,2]
[376396176,1753963863305,-460.0,0.00021643,2]
[376396177,1753963863315,-460.0,0.00021643,2]
[376396178,1753963863325,-461.47,0.00021643,2]
[376396179,1753963863335,-520.64,0.00021643,2]
[376396180,1753963863344,-460.0,0.00021643,2]
[376396181,1753963863353,-235.201776,0.00021643,2]
[376396182,1753963863363,-235.201776,0.00021643,2]
[376396183,1753963863373,-288.11,0.00021643,2]
[376396184,1753963863384,-460.0,0.00021643,2]
[376396185,1753963863394,-1447.46,0.00021643,2]
[376396186,1753963863405,-460.0,0.00021643,2]
[376396187,1753963863415,-1025.05,0.00021643,2]
[376396188,1753963863425,-460.0,0.00021643,2]
[376396189,1753963863435,-460.0,0.00021643,2]
[376396190,1753963863445,-460.0,0.00021643,2]
[376396191,1753963863456,-526.68,0.00021643,2]
[376396192,1753963863465,-5641.46,0.00021643,2]
[376396193,1753963863475,-460.0,0.00021643,2]
[376396194,1753963863486,-2424.54,0.00021643,2]
[376396195,1753963863495,-785.68,0.00021643,2]
[376396196,1753963863505,-945.34,0.00021643,2]
[376396197,1753963863515,-216.79095774,0.00021671,5]
[376396198,1753963863525,-130829.79065095,0.00021739,2]
[376396199,1753963863535,-151.0,0.00021739,2]
[376396200,1753963863545,-151.0,0.00021739,2]
[376396201,1753963863555,-151.0,0.00021739,2]
[376396202,1753963863565,-151.0,0.00021739,2]
[376396203,1753963863574,-151.0,0.00021739,2]
[376396204,1753963863584,-151.0,0.00021739,2]
[376396205,1753963863594,-151.0,0.00021739,2]
[376396206,1753963863604,-151.0,0.00021739,2]
[376396207,1753963863613,-151.0,0.00021739,2]
[376396208,1753963863623,-151.0,0.00021739,2]
[376396209,1753963863633,-686.82676673,0.00021762,5]
[376396210,1753963863643,-178.896,0.0002177,2]
[376396211,1753963863653,-656.166,0.0002177,2]
[376396212,1753963863663,-2000.0,0.00021812,2]
[376396213,1753963863672,-166.82224494,0.000219,4]
[376396214,1753963863682,-460.0,0.00021917,2]
[376396215,1753963863692,-271.78,0.00021917,2]
[376396216,1753963863701,-460.0,0.00021917,2]
[376396217,1753963863711,-460.0,0.00021917,2]
[376396218,1753963863721,-460.0,0.00021917,2]
[376396219,1753963863731,-460.0,0.00021917,2]
[376396220,1753963863741,-460.0,0.00021917,2]
[376396221,1753963863752,-460.0,0.00021917,2]
[376396222,1753963863762,-460.0,0.00021917,2]
[376396223,1753963863771,-460.0,0.00021917,2]
[376396224,1753963863781,-460.0,0.00021917,2]
[376396225,1753963863790,-570.7,0.00021917,2]
[376396226,1753963863800,-460.0,0.00021917,2]
[376396227,1753963863809,-584.6,0.00021917,2]
[376396228,1753963863819,-460.0,0.00021917,2]
[376396229,1753963863828,-1216.2,0.00021917,2]
[376396230,1753963863838,-483.73,0.00021917,2]
[376396231,1753963863848,-1379.79,0.00021917,2]
[376396232,1753963863858,-2057.89,0.00021917,2]
[376396233,1753963863867,-1568.32,0.00021917,2]
[376396234,1753963863878,-488.12,0.00021917,2]
[376396235,1753963863887,-460.0,0.00021917,2]
[376396236,1753963863897,-1262.54,0.00021917,2]
[376396237,1753963863907,-1116.38,0.00021917,2]
[376396238,1753963863917,-460.0,0.00021917,2]
[376396239,1753963863926,-460.0,0.00021917,2]
[376396240,1753963863935,-460.0,0.00021917,2]
[376396241,1753963863945,-460.0,0.00021917,2]
[376396242,1753963863955,-460.0,0.00021917,2]
[376396243,1753963863964,-1791.33,0.00021917,2]
[376396244,1753963863974,-460.0,0.00021917,2]
[376396245,1753963863983,-460.0,0.00021917,2]
[376396246,1753963863993,-1267.79,0.00021917,2]
[376396247,1753963864003,-460.0,0.00021917,2]
[376396248,1753963864016,-460.0,0.00021917,2]
[376396249,1753963864026,-460.0,0.00021917,2]
[376396250,1753963864036,-461.47,0.00021917,2]
[376396251,1753963864045,-520.64,0.00021917,2]
[376396252,1753963864057,-460.0,0.00021917,2]
[376396253,1753963864066,-460.0,0.00021917,2]
[376396254,1753963864077,-1447.46,0.00021917,2]
[376396255,1753963864087,-460.0,0.00021917,2]
[376396256,1753963864097,-1025.05,0.00021917,2]
[376396257,1753963864107,-460.0,0.00021917,2]
[376396258,1753963864117,-460.0,0.00021917,2]
[376396259,1753963864127,-460.0,0.00021917,2]
[376396260,1753963864136,-526.68,0.00021917,2]
[376396261,1753963864147,-5641.46,0.00021917,2]
[376396262,1753963864156,-460.0,0.00021917,2]
[376396263,1753963864166,-2424.54,0.00021917,2]
[376396264,1753963864176,-785.68,0.00021917,2]
[376396265,1753963864185,-945.34,0.00021917,2]
[376396266,1753963864196,-686.82676673,0.00021969,6]
[376396267,1753963864206,-1035.69,0.00022,7]
[376396268,1753963864215,-1694.18,0.00022,7]
[376396269,1753963864225,-9143.18,0.00022,7]
[376396270,1753963864234,-22453.24,0.00022,2]
[376396271,1753963864243,-353.51079401,0.00022,2]
[376396272,1753963864252,-27480.21144668,0.00022,3]
[376396273,1753963864261,-551.81139831,0.00022,2]
[376396274,1753963864270,-151.0,0.00022,7]
[376396275,1753963864280,-151.0,0.00022,7]
[376396276,1753963864289,-151.0,0.00022,7]
[376396277,1753963864298,-151.0,0.00022,7]
[376396278,1753963864308,-151.0,0.00022,7]
[376396279,1753963864317,-151.0,0.00022,7]
[376396280,1753963864326,-151.0,0.00022,7]
[376396281,1753963864336,-151.0,0.00022,7]
[376396282,1753963864347,-151.0,0.00022,7]
[376396283,1753963864357,-151.0,0.00022,7]
[376396284,1753963864368,-151.0,0.00022,7]
[376396285,1753963864379,-151.0,0.00022,7]
[376396286,1753963864388,-151.0,0.00022,7]
[376396287,1753963864397,-229.307814,0.00022,7]
[376396288,1753963864405,-824.977997,0.00022,7]
[376396289,1753963864415,-229.307814,0.00022,7]
[376396290,1753963864424,-151.0,0.00022,7]
[376396291,1753963864433,-151.0,0.00022,7]
[376396292,1753963864442,-151.0,0.00022,7]
[376396293,1753963864452,-151.0,0.00022,7]
[376396294,1753963864462,-288.913211,0.00022,7]
[376396295,1753963864471,-1310.07259,0.00022,7]
[376396296,1753963864481,-1310.07259,0.00022,7]
[376396297,1753963864491,-214.99831783,0.00022,3]
[376396298,1753963864501,-214.99831783,0.00022,7]
[376396299,1753963864511,-151.0,0.00022,7]
[376396300,1753963864521,-151.0,0.00022,7]
[376396301,1753963864532,-244.656716,0.00022,7]
[376396302,1753963864541,-151.0,0.00022,7]
[376396303,1753963864551,-244.656716,0.00022,7]
[376396304,1753963864560,-151.0,0.00022,7]
[376396305,1753963864569,-235.201776,0.00022,7]
[376396306,1753963864578,-235.201776,0.00022,7]
[376396307,1753963864588,-460.682337,0.00022,3]
[376396308,1753963864597,-12642.0599901,0.00022,3]
[376396309,1753963864608,-12642.0599901,0.00022,7]
[376396310,1753963864617,-151.0,0.00022,7]
[376396311,1753963864626,-168.0,0.00022,2]
[376396312,1753963864636,-150.801974,0.00022024,3]
[376396313,1753963864645,-720.54,0.000221,2]
[376396314,1753963864654,-686.82676673,0.00022176,6]
[376396315,1753963864663,-151.0,0.00022191,7]
[376396316,1753963864672,-460.0,0.00022191,2]
[376396317,1753963864682,-460.0,0.00022191,2]
[376396318,1753963864691,-460.0,0.00022191,2]
[376396319,1753963864701,-279.8,0.00022191,2]
[376396320,1753963864710,-460.0,0.00022191,2]
[376396321,1753963864720,-460.0,0.00022191,2]
[376396322,1753963864729,-358.08,0.00022191,2]
[376396323,1753963864739,-460.0,0.00022191,2]
[376396324,1753963864749,-460.0,0.00022191,2]
[376396325,1753963864758,-460.0,0.00022191,2]
[376396326,1753963864767,-570.7,0.00022191,2]
[376396327,1753963864865,-460.0,0.00022191,2]
[376396328,1753963864875,-584.6,0.00022191,2]
[376396329,1753963864884,-460.0,0.00022191,2]
[376396330,1753963864894,-1216.2,0.00022191,2]
[376396331,1753963864904,-483.73,0.00022191,2]
[376396332,1753963864915,-1379.79,0.00022191,2]
[376396333,1753963864924,-2057.89,0.00022191,2]
[376396334,1753963864933,-1568.32,0.00022191,2]
[376396335,1753963864943,-488.12,0.00022191,2]
[376396336,1753963864953,-460.0,0.00022191,2]
[376396337,1753963864964,-1262.54,0.00022191,2]
[376396338,1753963864973,-1116.38,0.00022191,2]
[376396339,1753963864983,-460.0,0.00022191,2]
[376396340,1753963864993,-460.0,0.00022191,2]
[376396341,1753963865002,-460.0,0.00022191,2]
[376396342,1753963865015,-460.0,0.00022191,2]
[376396343,1753963865024,-460.0,0.00022191,2]
[376396344,1753963865035,-1791.33,0.00022191,2]
[376396345,1753963865045,-460.0,0.00022191,2]
[376396346,1753963865055,-460.0,0.00022191,2]
[376396347,1753963865064,-1267.79,0.00022191,2]
[376396348,1753963865073,-460.0,0.00022191,2]
[376396349,1753963865083,-460.0,0.00022191,2]
[376396350,1753963865092,-460.0,0.00022191,2]
[376396351,1753963865102,-461.47,0.00022191,2]
[376396352,1753963865112,-520.64,0.00022191,2]
[376396353,1753963865121,-311.39,0.00022191,2]
[376396354,1753963865130,-460.0,0.00022191,2]
[376396355,1753963865139,-1447.46,0.00022191,2]
[376396356,1753963865148,-460.0,0.00022191,2]
[376396357,1753963865158,-1025.05,0.00022191,2]
[376396358,1753963865167,-460.0,0.00022191,2]
[376396359,1753963865178,-460.0,0.00022191,2]
[376396360,1753963865190,-460.0,0.00022191,2]
[376396361,1753963865199,-526.68,0.00022191,2]
[376396362,1753963865208,-5641.46,0.00022191,2]
[376396363,1753963865217,-460.0,0.00022191,2]
[376396364,1753963865226,-2424.54,0.00022191,2]
[376396365,1753963865236,-785.68,0.00022191,2]
[376396366,1753963865245,-945.34,0.00022191,2]
[376396367,1753963865254,-968.99856048,0.00022212,2]
[376396368,1753963865264,-250.0,0.00022215,2]
[376396369,1753963865273,-686.82676673,0.00022383,7]
[376396370,1753963865282,-460.0,0.00022465,2]
[376396371,1753963865291,-460.0,0.00022465,2]
[376396372,1753963865300,-460.0,0.00022465,2]
[376396373,1753963865309,-488.3,0.00022465,2]
[376396374,1753963865319,-460.0,0.00022465,2]
[376396375,1753963865328,-460.0,0.00022465,2]
[376396376,1753963865337,-1000.0,0.00022465,2]
[376396377,1753963865346,-1000.0,0.00022465,2]
[376396378,1753963865355,-1000.0,0.00022465,2]
[376396379,1753963865365,-1000.0,0.00022465,2]
[376396380,1753963865374,-1000.0,0.00022465,2]
[376396381,1753963865383,-1000.0,0.00022465,2]
[376396382,1753963865393,-1114.86,0.00022465,2]
[376396383,1753963865403,-279.26,0.00022465,2]
[376396384,1753963865412,-460.0,0.00022465,2]
[376396385,1753963865422,-570.7,0.00022465,2]
[376396386,1753963865432,-460.0,0.00022465,2]
[376396387,1753963865441,-584.6,0.00022465,2]
[376396388,1753963865451,-545.8,0.00022465,2]
[376396389,1753963865460,-1216.2,0.00022465,2]
[376396390,1753963865470,-483.73,0.00022465,2]
[376396391,1753963865479,-1379.79,0.00022465,2]
[376396392,1753963865489,-2057.89,0.00022465,2]
[376396393,1753963865498,-1568.32,0.00022465,2]
[376396394,1753963865508,-488.12,0.00022465,2]
[376396395,1753963865517,-460.0,0.00022465,2]
[376396396,1753963865527,-1262.54,0.00022465,2]
[376396397,1753963865536,-1116.38,0.00022465,2]
[376396398,1753963865545,-460.0,0.00022465,2]
[376396399,1753963865554,-460.0,0.00022465,2]
[376396400,1753963865564,-497.25,0.00022465,2]
[376396401,1753963865573,-593.32,0.00022465,2]
[376396402,1753963865582,-460.0,0.00022465,2]
[376396403,1753963865592,-1791.33,0.00022465,2]
[376396404,1753963865601,-460.0,0.00022465,2]
[376396405,1753963865610,-460.0,0.00022465,2]
[376396406,1753963865620,-1267.79,0.00022465,2]
[376396407,1753963865629,-460.0,0.00022465,2]
[376396408,1753963865638,-460.0,0.00022465,2]
[376396409,1753963865647,-460.0,0.00022465,2]
[376396410,1753963865657,-461.47,0.00022465,2]
[376396411,1753963865667,-520.64,0.00022465,2]
[376396412,1753963865676,-460.0,0.00022465,2]
[376396413,1753963865686,-1447.46,0.00022465,2]
[376396414,1753963865695,-460.0,0.00022465,2]
[376396415,1753963865705,-1025.05,0.00022465,2]
[376396416,1753963865714,-154.63,0.00022465,2]
[376396417,1753963865724,-460.0,0.00022465,2]
[376396418,1753963865733,-460.0,0.00022465,2]
[376396419,1753963865743,-526.68,0.00022465,2]
[376396420,1753963865752,-5641.46,0.00022465,2]
[376396421,1753963865761,-460.0,0.00022465,2]
[376396422,1753963865770,-2424.54,0.00022465,2]
[376396423,1753963865780,-785.68,0.00022465,2]
[376396424,1753963865790,-945.34,0.00022465,2]
[376396425,1753963865798,-117671.24466514,0.0002249,7]
[376396426,1753963865807,-151.0,0.0002249,7]
[376396427,1753963865817,-151.0,0.0002249,7]
[376396428,1753963865825,-151.0,0.0002249,7]
[376396429,1753963865834,-151.0,0.0002249,7]
[376396430,1753963865847,-151.0,0.0002249,7]
[376396431,1753963865856,-151.0,0.0002249,7]
[376396432,1753963865865,-151.0,0.0002249,7]
[376396433,1753963865875,-151.0,0.0002249,7]
[376396434,1753963865884,-151.0,0.0002249,7]
[376396435,1753963865893,-686.82676673,0.0002259,7]
[376396436,1753963865903,-159.684336,0.00022603,2]
[376396437,1753963865914,-500.0,0.0002266,2]
[376396438,1753963865923,-500.0,0.00022716,2]
[376396439,1753963865934,-151.0,0.00022739,7]
[376396440,1753963865943,-398.86,0.00022739,2]
[376396441,1753963865952,-460.0,0.00022739,2]
[376396442,1753963865961,-460.0,0.00022739,2]
[376396443,1753963865970,-460.0,0.00022739,2]
[376396444,1753963865979,-251.69,0.00022739,2]
[376396445,1753963865989,-460.0,0.00022739,2]
[376396446,1753963865998,-570.7,0.00022739,2]
[376396447,1753963866010,-460.0,0.00022739,2]
[376396448,1753963866020,-584.6,0.00022739,2]
[376396449,1753963866030,-1216.2,0.00022739,2]
[376396450,1753963866040,-483.73,0.00022739,2]
[376396451,1753963866050,-1379.79,0.00022739,2]
[376396452,1753963866060,-2057.89,0.00022739,2]
[376396453,1753963866070,-1568.32,0.00022739,2]
[376396454,1753963866079,-488.12,0.00022739,2]
[376396455,1753963866088,-460.0,0.00022739,2]
[376396456,1753963866097,-1262.54,0.00022739,2]
[376396457,1753963866106,-1116.38,0.00022739,2]
[376396458,1753963866116,-460.0,0.00022739,2]
[376396459,1753963866125,-460.0,0.00022739,2]
[376396460,1753963866134,-460.0,0.00022739,2]
[376396461,1753963866143,-1791.33,0.00022739,2]
[376396462,1753963866152,-206.46,0.00022739,2]
[376396463,1753963866162,-477.78,0.00022739,2]
[376396464,1753963866171,-1267.79,0.00022739,2]
[376396465,1753963866180,-460.0,0.00022739,2]
[376396466,1753963866188,-460.0,0.00022739,2]
[376396467,1753963866197,-460.0,0.00022739,2]
[376396468,1753963866206,-461.47,0.00022739,2]
[376396469,1753963866215,-520.64,0.00022739,2]
[376396470,1753963866225,-524.6,0.00022739,2]
[376396471,1753963866234,-1447.46,0.00022739,2]
[376396472,1753963866244,-460.0,0.00022739,2]
[376396473,1753963866252,-1025.05,0.00022739,2]
[376396474,1753963866262,-460.0,0.00022739,2]
[376396475,1753963866271,-460.0,0.00022739,2]
[376396476,1753963866281,-526.68,0.00022739,2]
[376396477,1753963866291,-5641.46,0.00022739,2]
[376396478,1753963866299,-460.0,0.00022739,2]
[376396479,1753963866309,-2424.54,0.00022739,2]
[376396480,1753963866318,-785.68,0.00022739,2]
[376396481,1753963866327,-945.34,0.00022739,2]
[376396482,1753963866336,-686.82676673,0.00022797,7]
[376396483,1753963866346,-968.99856048,0.00022923,2]
[376396484,1753963866355,-635.0,0.00022949,2]
[376396485,1753963866363,-160.0,0.00023,2]
[376396486,1753963866373,-221.476496,0.00023,7]
[376396487,1753963866382,-151.0,0.00023,7]
[376396488,1753963866391,-231.48161788,0.00023,3]
[376396489,1753963866400,-160.0,0.00023,3]
[376396490,1753963866409,-686.82676673,0.00023003,8]
[376396491,1753963866418,-460.0,0.00023013,2]
[376396492,1753963866427,-460.0,0.00023013,2]
[376396493,1753963866436,-204.72,0.00023013,2]
[376396494,1753963866445,-460.0,0.00023013,2]
[376396495,1753963866455,-570.7,0.00023013,2]
[376396496,1753963866464,-460.0,0.00023013,2]
[376396497,1753963866473,-584.6,0.00023013,2]
[376396498,1753963866483,-1216.2,0.00023013,2]
[376396499,1753963866492,-483.73,0.00023013,2]
[376396500,1753963866502,-1379.79,0.00023013,2]
[376396501,1753963866511,-2057.89,0.00023013,2]
[376396502,1753963866520,-1568.32,0.00023013,2]
[376396503,1753963866530,-488.12,0.00023013,2]
[376396504,1753963866539,-460.0,0.00023013,2]
[376396505,1753963866548,-1262.54,0.00023013,2]
[376396506,1753963866557,-1116.38,0.00023013,2]
[376396507,1753963866567,-460.0,0.00023013,2]
[376396508,1753963866576,-460.0,0.00023013,2]
[376396509,1753963866586,-460.0,0.00023013,2]
[376396510,1753963866595,-1791.33,0.00023013,2]
[376396511,1753963866604,-1267.79,0.00023013,2]
[376396512,1753963866613,-460.0,0.00023013,2]
[376396513,1753963866622,-460.0,0.00023013,2]
[376396514,1753963866632,-460.0,0.00023013,2]
[376396515,1753963866641,-461.47,0.00023013,2]
[376396516,1753963866651,-520.64,0.00023013,2]
[376396517,1753963866660,-1447.46,0.00023013,2]
[376396518,1753963866670,-460.0,0.00023013,2]
[376396519,1753963866679,-1025.05,0.00023013,2]
[376396520,1753963866689,-460.0,0.00023013,2]
[376396521,1753963866698,-336.18,0.00023013,2]
[376396522,1753963866708,-526.68,0.00023013,2]
[376396523,1753963866717,-5641.46,0.00023013,2]
[376396524,1753963866726,-2424.54,0.00023013,2]
[376396525,1753963866735,-460.0,0.00023013,2]
[376396526,1753963866744,-785.68,0.00023013,2]
[376396527,1753963866754,-945.34,0.00023013,2]
[376396528,1753963866763,-1694.18,0.000232,7]
[376396529,1753963866772,-161.0,0.000232,7]
[376396530,1753963866781,-686.82676673,0.0002321,8]
[376396531,1753963866790,-200.0,0.00023259,15]
[376396532,1753963866799,-200.0,0.00023259,15]
[376396533,1753963866809,-200.0,0.00023259,15]
[376396534,1753963866818,-200.0,0.00023259,15]
[376396535,1753963866827,-200.0,0.00023259,15]
[376396536,1753963866837,-200.0,0.00023259,15]
[376396537,1753963866847,-366.0,0.00023259,15]
[376396538,1753963866857,-151.0,0.00023287,7]
[376396539,1753963866866,-151.0,0.00023287,7]
[376396540,1753963866875,-151.0,0.00023287,7]
[376396541,1753963866884,-166.70279,0.00023287,7]
[376396542,1753963866894,-1310.07259,0.00023287,7]
[376396543,1753963866903,-1310.07259,0.00023287,7]
[376396544,1753963866912,-216.71,0.00023287,2]
[376396545,1753963866922,-460.0,0.00023287,2]
[376396546,1753963866931,-151.0,0.00023287,7]
[376396547,1753963866940,-460.0,0.00023287,2]
[376396548,1753963866950,-570.7,0.00023287,2]
[376396549,1753963866959,-460.0,0.00023287,2]
[376396550,1753963866968,-151.0,0.00023287,7]
[376396551,1753963866978,-584.6,0.00023287,2]
[376396552,1753963866987,-1216.2,0.00023287,2]
[376396553,1753963866996,-483.73,0.00023287,2]
[376396554,1753963867006,-1379.79,0.00023287,2]
[376396555,1753963867019,-2057.89,0.00023287,2]
[376396556,1753963867029,-1568.32,0.00023287,2]
[376396557,1753963867039,-488.12,0.00023287,2]
[376396558,1753963867049,-570.14,0.00023287,2]
[376396559,1753963867059,-1262.54,0.00023287,2]
[376396560,1753963867068,-1116.38,0.00023287,2]
[376396561,1753963867078,-174.67,0.00023287,2]
[376396562,1753963867088,-460.0,0.00023287,2]
[376396563,1753963867100,-460.0,0.00023287,2]
[376396564,1753963867109,-1791.33,0.00023287,2]
[376396565,1753963867119,-1267.79,0.00023287,2]
[376396566,1753963867128,-460.0,0.00023287,2]
[376396567,1753963867137,-460.0,0.00023287,2]
[376396568,1753963867147,-460.0,0.00023287,2]
[376396569,1753963867157,-461.47,0.00023287,2]
[376396570,1753963867169,-520.64,0.00023287,2]
[376396571,1753963867179,-1447.46,0.00023287,2]
[376396572,1753963867189,-460.0,0.00023287,2]
[376396573,1753963867198,-1025.05,0.00023287,2]
[376396574,1753963867208,-460.0,0.00023287,2]
[376396575,1753963867217,-526.68,0.00023287,2]
[376396576,1753963867227,-5641.46,0.00023287,2]
[376396577,1753963867237,-2424.54,0.00023287,2]
[376396578,1753963867247,-460.0,0.00023287,2]
[376396579,1753963867258,-785.68,0.00023287,2]
[376396580,1753963867270,-945.34,0.00023287,2]
[376396581,1753963867280,-500.0,0.00023287,2]
[376396582,1753963867290,-511.0,0.0002335,2]